[Event "Gibraltar Masters 18th"]
[Site "Gibraltar"]
[Date "2020.01.29"]
[Round "9.46"]
[White "Lombaers, Peter"]
[Black "Di Berardino, Diego Rafael"]
[Result "0-1"]
[ECO "E48"]
[WhiteElo "2383"]
[BlackElo "2478"]
[PlyCount "78"]
[EventDate "2020.01.21"]
[EventType "swiss"]
[EventRounds "10"]
[EventCountry "GGB"]
[SourceTitle "BritBase"]
[Source "John Saunders"]
[SourceDate "2021.06.05"]
[SourceVersion "1"]
[SourceVersionDate "2021.06.05"]
[SourceQuality "1"]
[TimeControl "40/100:0"]
[WhiteClock "0:02:51"]
[BlackClock "0:02:54"]

1. d4 {[%emt 0:00:00]} Nf6 {[%emt 0:00:00]} 2. c4 {[%emt 0:00:00]} e6 {[%emt 0:
00:00]} 3. Nc3 {[%emt 0:00:00]} Bb4 {[%emt 0:00:00]} 4. e3 {[%emt 0:00:00]} O-O
{[%emt 0:00:00]} 5. Bd3 {[%emt 0:00:00]} b6 {[%emt 0:00:00]} 6. Nge2 {[%emt 0:
00:00]} d5 {[%emt 0:00:00]} 7. cxd5 {[%emt 0:00:00]} exd5 {[%emt 0:00:00]} 8.
O-O {[%emt 0:00:00]} Ba6 {[%emt 0:00:00]} 9. Bxa6 {[%emt 0:00:00]} Nxa6 {
[%emt 0:00:00]} 10. a3 {[%emt 0:00:00]} Bd6 {[%emt 0:00:00]} 11. b4 {[%emt 0:
00:00]} c5 {[%emt 0:00:00]} 12. bxc5 {[%emt 0:00:00]} bxc5 {[%emt 0:00:00]} 13.
dxc5 {[%emt 0:00:00]} Nxc5 {[%emt 0:00:00]} 14. a4 {[%emt 0:00:00]} Re8 {
[%emt 0:00:00]} 15. Ba3 {[%emt 0:00:00]} Rc8 {[%emt 0:00:00]} 16. Bxc5 {
[%emt 0:00:00]} Rxc5 {[%emt 0:00:00]} 17. Nb5 {[%emt 0:00:00]} Bb8 {[%emt 0:00:
00]} 18. Rc1 {[%emt 0:00:00]} Rxc1 {[%emt 0:00:00]} 19. Qxc1 {[%emt 0:00:00]}
Qd7 {[%emt 0:00:00]} 20. Ned4 {[%emt 0:00:00]} a6 {[%emt 0:00:00]} 21. Na3 {
[%emt 0:00:00]} Qxa4 {[%emt 0:00:00]} 22. Nac2 {[%emt 0:00:00]} Be5 {[%emt 0:
00:00]} 23. g3 {[%emt 0:00:00]} g6 {[%emt 0:00:00]} 24. Qa1 {[%emt 0:00:00]}
Qc4 {[%emt 0:00:00]} 25. Qa3 {[%emt 0:00:00]} Ne4 {[%emt 0:00:00]} 26. Ra1 {
[%emt 0:00:00]} Rb8 {[%emt 0:00:00]} 27. Qxa6 {[%emt 0:00:00]} Rb2 {[%emt 0:00:
00]} 28. Kg2 {[%emt 0:00:00]} Rxc2 {[%emt 0:00:00]} 29. Nxc2 {[%emt 0:00:00]}
Qxc2 {[%emt 0:00:00]} 30. Ra2 {[%emt 0:00:00]} Bb2 {[%emt 0:00:00]} 31. Qf1 {
[%emt 0:00:00]} Kg7 {[%emt 0:00:00]} 32. h4 {[%emt 0:00:00]} h5 {[%emt 0:00:00]
} 33. Qe1 {[%emt 0:00:00]} Nc3 {[%emt 0:00:00]} 34. Ra5 {[%emt 0:00:00]} Qe4+ {
[%emt 0:00:04]} 35. f3 {[%emt 0:00:00]} Qd3 {[%emt 0:00:00]} 36. Ra7 {[%emt 0:
00:00]} Nd1 {[%emt 0:00:00]} 37. e4 {[%emt 0:00:00]} Bc3 {[%emt 0:00:00]} 38.
Qh1 {[%emt 0:00:00]} Qe2+ {[%emt 0:00:00]} 39. Kh3 {[%emt 0:00:00]} Nf2+ {
[%emt 0:00:00]} 0-1

[Event "Gibraltar Masters 18th"]
[Site "Gibraltar"]
[Date "2020.01.29"]
[Round "9.47"]
[White "Roussel-Roozmon, Thomas"]
[Black "Zhukova, Natalia"]
[Result "1-0"]
[ECO "A13"]
[WhiteElo "2473"]
[BlackElo "2338"]
[PlyCount "103"]
[EventDate "2020.01.21"]
[EventType "swiss"]
[EventRounds "10"]
[EventCountry "GGB"]
[SourceTitle "BritBase"]
[Source "John Saunders"]
[SourceDate "2021.06.05"]
[SourceVersion "1"]
[SourceVersionDate "2021.06.05"]
[SourceQuality "1"]
[TimeControl "40/100:0"]
[WhiteClock "0:07:50"]
[BlackClock "0:11:16"]

1. c4 {[%emt 0:00:00]} Nf6 {[%emt 0:00:00]} 2. Nf3 {[%emt 0:00:00]} e6 {
[%emt 0:00:00]} 3. g3 {[%emt 0:00:00]} d5 {[%emt 0:00:00]} 4. Bg2 {[%emt 0:00:
00]} dxc4 {[%emt 0:00:00]} 5. Qa4+ {[%emt 0:00:00]} Bd7 {[%emt 0:00:00]} 6.
Qxc4 {[%emt 0:00:00]} c5 {[%emt 0:00:00]} 7. Ne5 {[%emt 0:00:00]} Qc8 {[%emt 0:
00:00]} 8. Qd3 {[%emt 0:00:00]} Nc6 {[%emt 0:00:00]} 9. Nxd7 {[%emt 0:00:00]}
Nxd7 {[%emt 0:00:00]} 10. Qb5 {[%emt 0:00:00]} Be7 {[%emt 0:00:00]} 11. d3 {
[%emt 0:00:00]} Nd4 {[%emt 0:00:00]} 12. Qa4 {[%emt 0:00:00]} O-O {[%emt 0:00:
00]} 13. Nc3 {[%emt 0:00:00]} Rd8 {[%emt 0:00:00]} 14. O-O {[%emt 0:00:00]} Nb6
{[%emt 0:00:00]} 15. Qd1 {[%emt 0:00:00]} Nc6 {[%emt 0:00:00]} 16. b3 {[%emt 0:
00:00]} Bf6 {[%emt 0:00:00]} 17. Bd2 {[%emt 0:00:00]} Nd5 {[%emt 0:00:00]} 18.
Rc1 {[%emt 0:00:00]} Bxc3 {[%emt 0:00:00]} 19. Bxc3 {[%emt 0:00:00]} b6 {
[%emt 0:00:00]} 20. Ba1 {[%emt 0:00:00]} e5 {[%emt 0:00:00]} 21. Qd2 {[%emt 0:
00:00]} Qe6 {[%emt 0:00:00]} 22. Rfd1 {[%emt 0:00:00]} Rd7 {[%emt 0:00:00]} 23.
Qb2 {[%emt 0:00:00]} Rad8 {[%emt 0:00:00]} 24. Rd2 {[%emt 0:00:00]} f5 {
[%emt 0:00:00]} 25. a3 {[%emt 0:00:00]} f4 {[%emt 0:00:00]} 26. Rc4 {[%emt 0:
00:00]} Nd4 {[%emt 0:00:00]} 27. b4 {[%emt 0:00:00]} cxb4 {[%emt 0:00:00]} 28.
axb4 {[%emt 0:00:00]} h5 {[%emt 0:00:00]} 29. Rxd4 {[%emt 0:00:00]} exd4 {
[%emt 0:00:00]} 30. Qxd4 {[%emt 0:00:00]} fxg3 {[%emt 0:00:00]} 31. hxg3 {
[%emt 0:00:00]} Nf6 {[%emt 0:00:00]} 32. Qh4 {[%emt 0:00:00]} Rc7 {[%emt 0:00:
00]} 33. Bb2 {[%emt 0:00:00]} Rc4 {[%emt 0:00:00]} 34. Bh3 {[%emt 0:00:00]} Qc6
{[%emt 0:00:00]} 35. Qg5 {[%emt 0:00:00]} Rxb4 {[%emt 0:00:00]} 36. Rc2 {
[%emt 0:00:00]} Qd6 {[%emt 0:00:42]} 37. Be5 {[%emt 0:00:00]} Rb1+ {[%emt 0:00:
00]} 38. Kh2 {[%emt 0:00:00]} Qd5 {[%emt 0:00:19]} 39. e4 {[%emt 0:00:00]} Qf7
{[%emt 0:00:00]} 40. Kg2 {[%emt 0:00:00]} Re8 {[%emt 0:00:00]} 41. Rc7 {
[%emt 0:00:00]} Re7 {[%emt 0:00:00]} 42. Rc8+ {[%emt 0:00:00]} Ne8 {[%emt 0:00:
00]} 43. d4 {[%emt 0:00:00]} Rb2 {[%emt 0:00:00]} 44. Bf5 {[%emt 0:00:00]} b5 {
[%emt 0:00:00]} 45. Qg6 {[%emt 0:00:00]} Qxg6 {[%emt 0:00:00]} 46. Bxg6 {
[%emt 0:00:00]} b4 {[%emt 0:00:00]} 47. Bxe8 {[%emt 0:00:00]} Kh7 {[%emt 0:00:
00]} 48. Ba4 {[%emt 0:00:00]} a5 {[%emt 0:00:00]} 49. Ra8 {[%emt 0:00:00]} Rb1
{[%emt 0:00:00]} 50. Bd6 {[%emt 0:00:00]} Rb7 {[%emt 0:00:00]} 51. e5 {[%emt 0:
00:00]} Re1 {[%emt 0:00:00]} 52. Bb3 {[%emt 0:00:00]} 1-0

[Event "Gibraltar Masters 18th"]
[Site "Gibraltar"]
[Date "2020.01.29"]
[Round "9.48"]
[White "Quintiliano Pinto, Renato R"]
[Black "Ranaldi, Lucas"]
[Result "1/2-1/2"]
[ECO "E17"]
[WhiteElo "2471"]
[BlackElo "2296"]
[PlyCount "151"]
[EventDate "2020.01.21"]
[EventType "swiss"]
[EventRounds "10"]
[EventCountry "GGB"]
[SourceTitle "BritBase"]
[Source "John Saunders"]
[SourceDate "2021.06.05"]
[SourceVersion "1"]
[SourceVersionDate "2021.06.05"]
[SourceQuality "1"]
[TimeControl "40/100:0"]
[WhiteClock "0:29:22"]
[BlackClock "0:05:49"]

1. d4 {[%emt 0:00:00]} Nf6 {[%emt 0:00:00]} 2. c4 {[%emt 0:00:00]} e6 {[%emt 0:
00:00]} 3. Nf3 {[%emt 0:00:00]} b6 {[%emt 0:00:00]} 4. g3 {[%emt 0:00:00]} Bb7
{[%emt 0:00:00]} 5. Bg2 {[%emt 0:00:00]} Be7 {[%emt 0:00:00]} 6. Nc3 {[%emt 0:
00:00]} Ne4 {[%emt 0:00:00]} 7. Bd2 {[%emt 0:00:00]} f5 {[%emt 0:00:00]} 8. d5
{[%emt 0:00:00]} Bf6 {[%emt 0:00:00]} 9. Qc2 {[%emt 0:00:00]} Nxd2 {[%emt 0:00:
00]} 10. Qxd2 {[%emt 0:00:00]} O-O {[%emt 0:00:00]} 11. Nd4 {[%emt 0:00:00]}
Bxd4 {[%emt 0:00:00]} 12. Qxd4 {[%emt 0:00:00]} d6 {[%emt 0:00:00]} 13. f4 {
[%emt 0:00:00]} Nd7 {[%emt 0:00:00]} 14. O-O {[%emt 0:00:00]} e5 {[%emt 0:00:
00]} 15. Qd2 {[%emt 0:00:00]} Ba6 {[%emt 0:00:00]} 16. b3 {[%emt 0:00:00]} Qe7
{[%emt 0:00:00]} 17. e4 {[%emt 0:00:00]} exf4 {[%emt 0:00:00]} 18. gxf4 {
[%emt 0:00:00]} Rae8 {[%emt 0:00:00]} 19. Rae1 {[%emt 0:00:00]} Qf6 {[%emt 0:
00:00]} 20. Bh3 {[%emt 0:00:00]} g6 {[%emt 0:00:00]} 21. Kh1 {[%emt 0:00:00]}
Qh4 {[%emt 0:00:00]} 22. Re3 {[%emt 0:00:00]} Nf6 {[%emt 0:00:00]} 23. e5 {
[%emt 0:00:00]} Nh5 {[%emt 0:00:27]} 24. Qe1 {[%emt 0:00:00]} Qxe1 {[%emt 0:00:
00]} 25. Rexe1 {[%emt 0:00:00]} Kf7 {[%emt 0:00:00]} 26. a4 {[%emt 0:00:00]}
Re7 {[%emt 0:00:00]} 27. e6+ {[%emt 0:00:00]} Kg7 {[%emt 0:00:00]} 28. Bg2 {
[%emt 0:00:00]} Bb7 {[%emt 0:00:00]} 29. Rf2 {[%emt 0:00:00]} a5 {[%emt 0:00:
00]} 30. Ne2 {[%emt 0:00:00]} Nf6 {[%emt 0:00:00]} 31. Rg1 {[%emt 0:00:00]} Rg8
{[%emt 0:00:00]} 32. Nd4 {[%emt 0:00:00]} Kf8 {[%emt 0:00:00]} 33. Bf3 {
[%emt 0:00:00]} Reg7 {[%emt 0:00:00]} 34. Rfg2 {[%emt 0:00:00]} Ne8 {[%emt 0:
00:00]} 35. h3 {[%emt 0:00:00]} Ke7 {[%emt 0:00:00]} 36. Kh2 {[%emt 0:00:00]}
Kf6 {[%emt 0:00:00]} 37. h4 {[%emt 0:00:00]} h6 {[%emt 0:00:00]} 38. Rg3 {
[%emt 0:00:00]} Ba8 {[%emt 0:00:00]} 39. R1g2 {[%emt 0:00:00]} Bb7 {[%emt 0:00:
00]} 40. Rg1 {[%emt 0:00:00]} Rh8 {[%emt 0:00:00]} 41. Kh3 {[%emt 0:00:00]}
Rhg8 {[%emt 0:00:00]} 42. R1g2 {[%emt 0:00:00]} Bc8 {[%emt 0:00:00]} 43. Bd1 {
[%emt 0:00:00]} c5 {[%emt 0:00:00]} 44. Nc2 {[%emt 0:00:00]} Rh8 {[%emt 0:00:
00]} 45. Ne3 {[%emt 0:00:00]} h5 {[%emt 0:01:27]} 46. Rg5 {[%emt 0:00:00]} Rh6
{[%emt 0:00:00]} 47. Bc2 {[%emt 0:00:00]} Rhh7 {[%emt 0:00:15]} 48. Nf1 {
[%emt 0:00:00]} Nc7 {[%emt 0:00:00]} 49. Ne3 {[%emt 0:00:00]} Ne8 {[%emt 0:00:
00]} 50. Kh2 {[%emt 0:00:00]} Nc7 {[%emt 0:00:00]} 51. Kg1 {[%emt 0:00:00]} Ne8
{[%emt 0:00:00]} 52. Kf2 {[%emt 0:00:00]} Nc7 {[%emt 0:00:00]} 53. Rg1 {
[%emt 0:00:00]} Ne8 {[%emt 0:00:00]} 54. Bd1 {[%emt 0:00:00]} Rh6 {[%emt 0:00:
00]} 55. Nf1 {[%emt 0:00:00]} Rgh7 {[%emt 0:00:00]} 56. Ng3 {[%emt 0:00:00]}
Ng7 {[%emt 0:00:00]} 57. Nf1 {[%emt 0:00:00]} Rh8 {[%emt 0:00:00]} 58. Nh2 {
[%emt 0:00:00]} Rg8 {[%emt 0:00:00]} 59. Bc2 {[%emt 0:00:00]} Rgh8 {[%emt 0:00:
00]} 60. Nf3 {[%emt 0:00:00]} Rg8 {[%emt 0:00:07]} 61. R1g2 {[%emt 0:00:00]}
Rf8 {[%emt 0:00:00]} 62. R5g3 {[%emt 0:00:00]} Ne8 {[%emt 0:00:00]} 63. Rg5 {
[%emt 0:00:00]} Ng7 {[%emt 0:00:00]} 64. Rg1 {[%emt 0:00:00]} Re8 {[%emt 0:00:
00]} 65. R5g2 {[%emt 0:00:00]} Rf8 {[%emt 0:00:00]} 66. Ng5 {[%emt 0:00:00]}
Ne8 {[%emt 0:00:00]} 67. Bd1 {[%emt 0:00:00]} Rg8 {[%emt 0:00:00]} 68. Bc2 {
[%emt 0:00:00]} Rf8 {[%emt 0:00:00]} 69. Bd3 {[%emt 0:00:00]} Ke7 {[%emt 0:00:
00]} 70. Nf7 {[%emt 0:00:00]} Rxf7 {[%emt 0:00:00]} 71. exf7 {[%emt 0:00:00]}
Kxf7 {[%emt 0:00:00]} 72. Re1 {[%emt 0:00:00]} Nf6 {[%emt 0:00:00]} 73. Kf3 {
[%emt 0:00:00]} Rh8 {[%emt 0:00:00]} 74. Rge2 {[%emt 0:00:00]} Re8 {[%emt 0:00:
00]} 75. Rxe8 {[%emt 0:00:00]} Nxe8 {[%emt 0:00:00]} 76. Re2 {[%emt 0:00:00]}
1/2-1/2

[Event "Gibraltar Masters 18th"]
[Site "Gibraltar"]
[Date "2020.01.29"]
[Round "9.49"]
[White "Reimanis, Ritvars"]
[Black "Cramling, Pia"]
[Result "1/2-1/2"]
[ECO "E08"]
[WhiteElo "2370"]
[BlackElo "2470"]
[PlyCount "57"]
[EventDate "2020.01.21"]
[EventType "swiss"]
[EventRounds "10"]
[EventCountry "GGB"]
[SourceTitle "BritBase"]
[Source "John Saunders"]
[SourceDate "2021.06.05"]
[SourceVersion "1"]
[SourceVersionDate "2021.06.05"]
[SourceQuality "1"]
[TimeControl "40/100:0"]
[WhiteClock "0:28:01"]
[BlackClock "0:18:40"]

1. d4 {[%emt 0:00:00]} Nf6 {[%emt 0:00:00]} 2. Nf3 {[%emt 0:00:00]} e6 {
[%emt 0:00:00]} 3. c4 {[%emt 0:00:00]} Bb4+ {[%emt 0:00:00]} 4. Bd2 {[%emt 0:
00:00]} a5 {[%emt 0:00:00]} 5. g3 {[%emt 0:00:00]} d5 {[%emt 0:00:00]} 6. Qc2 {
[%emt 0:00:00]} O-O {[%emt 0:00:00]} 7. Bg2 {[%emt 0:00:00]} c6 {[%emt 0:00:00]
} 8. O-O {[%emt 0:00:00]} Nbd7 {[%emt 0:00:00]} 9. Bf4 {[%emt 0:00:00]} Be7 {
[%emt 0:00:00]} 10. Rd1 {[%emt 0:00:00]} b6 {[%emt 0:00:00]} 11. Ne5 {[%emt 0:
00:00]} Bb7 {[%emt 0:00:00]} 12. Nc3 {[%emt 0:00:00]} Rc8 {[%emt 0:00:00]} 13.
e4 {[%emt 0:00:00]} Nb8 {[%emt 0:00:00]} 14. Qb3 {[%emt 0:00:00]} dxc4 {
[%emt 0:00:00]} 15. Nxc4 {[%emt 0:00:00]} b5 {[%emt 0:00:00]} 16. Ne5 {[%emt 0:
00:00]} Qb6 {[%emt 0:00:00]} 17. Rac1 {[%emt 0:00:00]} Qa6 {[%emt 0:00:00]} 18.
a4 {[%emt 0:00:00]} b4 {[%emt 0:00:00]} 19. Nb1 {[%emt 0:00:00]} Rfd8 {[%emt 0:
00:00]} 20. Be3 {[%emt 0:00:00]} Nbd7 {[%emt 0:00:00]} 21. Bf1 {[%emt 0:00:00]}
Qa8 {[%emt 0:00:00]} 22. Nxd7 {[%emt 0:00:00]} Nxd7 {[%emt 0:00:00]} 23. f3 {
[%emt 0:00:00]} h6 {[%emt 0:00:00]} 24. Kf2 {[%emt 0:00:00]} Rf8 {[%emt 0:00:
00]} 25. Bc4 {[%emt 0:00:00]} Nb6 {[%emt 0:00:00]} 26. Be2 {[%emt 0:00:00]} Nd7
{[%emt 0:00:00]} 27. Bc4 {[%emt 0:00:00]} Nb6 {[%emt 0:00:00]} 28. Be2 {
[%emt 0:00:00]} Nd7 {[%emt 0:00:00]} 29. Bc4 {[%emt 0:00:00]} 1/2-1/2

[Event "Gibraltar Masters 18th"]
[Site "Gibraltar"]
[Date "2020.01.29"]
[Round "9.50"]
[White "Padmini, Rout"]
[Black "Ravi, Teja S"]
[Result "0-1"]
[ECO "B12"]
[WhiteElo "2369"]
[BlackElo "2464"]
[PlyCount "74"]
[EventDate "2020.01.21"]
[EventType "swiss"]
[EventRounds "10"]
[EventCountry "GGB"]
[SourceTitle "BritBase"]
[Source "John Saunders"]
[SourceDate "2021.06.05"]
[SourceVersion "1"]
[SourceVersionDate "2021.06.05"]
[SourceQuality "1"]
[TimeControl "40/100:0"]
[WhiteClock "0:01:05"]
[BlackClock "0:11:45"]

1. e4 {[%emt 0:00:00]} c6 {[%emt 0:00:00]} 2. d4 {[%emt 0:00:00]} d5 {[%emt 0:
00:00]} 3. e5 {[%emt 0:00:00]} c5 {[%emt 0:00:00]} 4. Nf3 {[%emt 0:00:00]} cxd4
{[%emt 0:00:00]} 5. Nxd4 {[%emt 0:00:00]} Nc6 {[%emt 0:00:00]} 6. Nxc6 {
[%emt 0:00:00]} bxc6 {[%emt 0:00:00]} 7. Bd3 {[%emt 0:00:00]} e6 {[%emt 0:00:
00]} 8. Nd2 {[%emt 0:00:00]} Ne7 {[%emt 0:00:00]} 9. O-O {[%emt 0:00:00]} Ng6 {
[%emt 0:00:00]} 10. Re1 {[%emt 0:00:00]} Be7 {[%emt 0:00:00]} 11. Qg4 {[%emt 0:
00:00]} Qb6 {[%emt 0:00:00]} 12. c3 {[%emt 0:00:00]} Ba6 {[%emt 0:00:00]} 13.
Bc2 {[%emt 0:00:00]} h5 {[%emt 0:00:00]} 14. Qg3 {[%emt 0:00:00]} h4 {[%emt 0:
00:00]} 15. Qg4 {[%emt 0:00:00]} Bc5 {[%emt 0:00:00]} 16. Qf3 {[%emt 0:00:00]}
h3 {[%emt 0:00:00]} 17. g3 {[%emt 0:00:00]} Qc7 {[%emt 0:00:00]} 18. Nb3 {
[%emt 0:00:00]} Bb6 {[%emt 0:00:00]} 19. Bxg6 {[%emt 0:00:00]} fxg6 {[%emt 0:
00:00]} 20. Nd4 {[%emt 0:01:29]} Bxd4 {[%emt 0:00:00]} 21. cxd4 {[%emt 0:00:00]
} Rf8 {[%emt 0:00:00]} 22. Qc3 {[%emt 0:00:00]} Rc8 {[%emt 0:00:00]} 23. Bg5 {
[%emt 0:00:00]} c5 {[%emt 0:00:00]} 24. Rac1 {[%emt 0:00:00]} Qb7 {[%emt 0:00:
00]} 25. Qa3 {[%emt 0:00:00]} Rf5 {[%emt 0:00:00]} 26. f4 {[%emt 0:00:00]} Rf7
{[%emt 0:00:00]} 27. Rxc5 {[%emt 0:00:00]} Rxc5 {[%emt 0:00:00]} 28. Qxc5 {
[%emt 0:00:00]} Rc7 {[%emt 0:00:00]} 29. Qa3 {[%emt 0:00:00]} Qb6 {[%emt 0:00:
00]} 30. Rd1 {[%emt 0:00:00]} Qb5 {[%emt 0:00:00]} 31. Re1 {[%emt 0:00:00]} Qc4
{[%emt 0:00:00]} 32. Qc3 {[%emt 0:00:00]} Qxc3 {[%emt 0:00:00]} 33. bxc3 {
[%emt 0:00:00]} Rxc3 {[%emt 0:00:00]} 34. f5 {[%emt 0:00:00]} gxf5 {[%emt 0:00:
00]} 35. Kf2 {[%emt 0:00:00]} Rc2+ {[%emt 0:00:00]} 36. Kf3 {[%emt 0:00:00]}
Rxh2 {[%emt 0:00:00]} 37. g4 {[%emt 0:00:00]} Rg2 {[%emt 0:00:00]} 0-1

[Event "Gibraltar Masters 18th"]
[Site "Gibraltar"]
[Date "2020.01.29"]
[Round "9.51"]
[White "Javakhishvili, Lela"]
[Black "Werle, Iozefina"]
[Result "1-0"]
[ECO "E01"]
[WhiteElo "2463"]
[BlackElo "2271"]
[PlyCount "79"]
[EventDate "2020.01.21"]
[EventType "swiss"]
[EventRounds "10"]
[EventCountry "GGB"]
[SourceTitle "BritBase"]
[Source "John Saunders"]
[SourceDate "2021.06.05"]
[SourceVersion "1"]
[SourceVersionDate "2021.06.05"]
[SourceQuality "1"]
[TimeControl "40/100:0"]
[WhiteClock "0:03:01"]
[BlackClock "0:08:40"]

1. Nf3 {[%emt 0:00:00]} Nf6 {[%emt 0:00:00]} 2. c4 {[%emt 0:00:00]} e6 {
[%emt 0:00:00]} 3. g3 {[%emt 0:00:00]} d5 {[%emt 0:00:00]} 4. b3 {[%emt 0:00:
00]} Nbd7 {[%emt 0:00:00]} 5. Bg2 {[%emt 0:00:00]} Bd6 {[%emt 0:00:00]} 6. Bb2
{[%emt 0:00:00]} O-O {[%emt 0:00:00]} 7. O-O {[%emt 0:00:00]} c6 {[%emt 0:00:
00]} 8. d4 {[%emt 0:00:00]} Re8 {[%emt 0:00:00]} 9. Nc3 {[%emt 0:00:00]} dxc4 {
[%emt 0:00:00]} 10. bxc4 {[%emt 0:00:00]} e5 {[%emt 0:00:00]} 11. e3 {[%emt 0:
00:00]} Qe7 {[%emt 0:00:00]} 12. Rb1 {[%emt 0:00:00]} a6 {[%emt 0:00:00]} 13.
Qc2 {[%emt 0:00:00]} Rb8 {[%emt 0:00:00]} 14. Rbd1 {[%emt 0:00:00]} Qe6 {
[%emt 0:00:00]} 15. c5 {[%emt 0:00:00]} Bc7 {[%emt 0:00:00]} 16. Ng5 {[%emt 0:
00:00]} Qg4 {[%emt 0:00:00]} 17. f4 {[%emt 0:00:00]} Qh5 {[%emt 0:00:00]} 18.
Bf3 {[%emt 0:00:00]} Qh6 {[%emt 0:00:00]} 19. dxe5 {[%emt 0:00:00]} Bxe5 {
[%emt 0:00:00]} 20. fxe5 {[%emt 0:00:00]} Nxe5 {[%emt 0:00:00]} 21. Nce4 {
[%emt 0:00:00]} Nxe4 {[%emt 0:00:00]} 22. Qxe4 {[%emt 0:00:00]} Qxg5 {[%emt 0:
00:00]} 23. Bxe5 {[%emt 0:00:00]} Bd7 {[%emt 0:00:00]} 24. Bf4 {[%emt 0:00:00]}
Qxc5 {[%emt 0:00:00]} 25. Qd4 {[%emt 0:00:00]} Qxd4 {[%emt 0:00:00]} 26. Rxd4 {
[%emt 0:00:00]} Bh3 {[%emt 0:00:00]} 27. Rb1 {[%emt 0:00:00]} Rbc8 {[%emt 0:00:
00]} 28. Rxb7 {[%emt 0:00:00]} h6 {[%emt 0:00:00]} 29. Kf2 {[%emt 0:00:00]} g5
{[%emt 0:00:00]} 30. Bd6 {[%emt 0:00:00]} Be6 {[%emt 0:00:00]} 31. Bc5 {
[%emt 0:00:00]} Bxa2 {[%emt 0:00:00]} 32. Rd6 {[%emt 0:00:00]} Re6 {[%emt 0:00:
00]} 33. Rxe6 {[%emt 0:00:00]} Bxe6 {[%emt 0:00:00]} 34. Rb6 {[%emt 0:00:00]}
Rd8 {[%emt 0:00:00]} 35. Ke1 {[%emt 0:00:00]} Rd3 {[%emt 0:00:00]} 36. Rb8+ {
[%emt 0:00:00]} Kg7 {[%emt 0:00:00]} 37. Bd4+ {[%emt 0:00:00]} f6 {[%emt 0:00:
00]} 38. Rb7+ {[%emt 0:00:00]} Kg8 {[%emt 0:00:00]} 39. Be4 {[%emt 0:00:00]}
Ra3 {[%emt 0:00:00]} 40. Bh7+ {[%emt 0:00:00]} 1-0

[Event "Gibraltar Masters 18th"]
[Site "Gibraltar"]
[Date "2020.01.29"]
[Round "9.52"]
[White "Plotkin, Victor"]
[Black "Batsiashvili, Nino"]
[Result "0-1"]
[ECO "C55"]
[WhiteElo "2267"]
[BlackElo "2456"]
[PlyCount "102"]
[EventDate "2020.01.21"]
[EventType "swiss"]
[EventRounds "10"]
[EventCountry "GGB"]
[SourceTitle "BritBase"]
[Source "John Saunders"]
[SourceDate "2021.06.05"]
[SourceVersion "1"]
[SourceVersionDate "2021.06.05"]
[SourceQuality "1"]
[TimeControl "40/100:0"]
[WhiteClock "0:34:21"]
[BlackClock "0:46:35"]

1. e4 {[%emt 0:00:00]} e5 {[%emt 0:00:00]} 2. Nf3 {[%emt 0:00:00]} Nc6 {
[%emt 0:00:00]} 3. Bc4 {[%emt 0:00:00]} Nf6 {[%emt 0:00:00]} 4. d3 {[%emt 0:00:
00]} h6 {[%emt 0:00:00]} 5. h3 {[%emt 0:00:00]} d6 {[%emt 0:00:00]} 6. c3 {
[%emt 0:00:00]} g6 {[%emt 0:00:00]} 7. Nbd2 {[%emt 0:00:00]} Bg7 {[%emt 0:00:
00]} 8. O-O {[%emt 0:00:00]} O-O {[%emt 0:00:00]} 9. Re1 {[%emt 0:00:00]} Nh5 {
[%emt 0:00:00]} 10. Nf1 {[%emt 0:00:00]} Ne7 {[%emt 0:00:00]} 11. d4 {[%emt 0:
00:00]} d5 {[%emt 0:00:00]} 12. exd5 {[%emt 0:00:00]} exd4 {[%emt 0:00:00]} 13.
Qb3 {[%emt 0:00:00]} dxc3 {[%emt 0:00:00]} 14. bxc3 {[%emt 0:00:00]} c5 {
[%emt 0:00:00]} 15. Be3 {[%emt 0:00:00]} b6 {[%emt 0:00:00]} 16. Rad1 {[%emt 0:
00:00]} Nf5 {[%emt 0:00:00]} 17. Bc1 {[%emt 0:00:00]} Nd6 {[%emt 0:00:00]} 18.
g4 {[%emt 0:00:00]} Qf6 {[%emt 0:00:00]} 19. Be2 {[%emt 0:00:00]} Nf4 {[%emt 0:
00:00]} 20. Bxf4 {[%emt 0:00:00]} Qxf4 {[%emt 0:00:00]} 21. c4 {[%emt 0:00:00]}
Bd7 {[%emt 0:00:00]} 22. Qe3 {[%emt 0:00:00]} Qf6 {[%emt 0:00:00]} 23. Ng3 {
[%emt 0:00:00]} Rfe8 {[%emt 0:00:00]} 24. Qb3 {[%emt 0:00:00]} Ne4 {[%emt 0:00:
00]} 25. Nxe4 {[%emt 0:00:00]} Rxe4 {[%emt 0:00:00]} 26. Bf1 {[%emt 0:00:00]}
Rae8 {[%emt 0:00:00]} 27. Rxe4 {[%emt 0:00:00]} Rxe4 {[%emt 0:00:00]} 28. Re1 {
[%emt 0:00:00]} Rxe1 {[%emt 0:00:00]} 29. Nxe1 {[%emt 0:00:00]} h5 {[%emt 0:00:
00]} 30. gxh5 {[%emt 0:00:00]} Qe5 {[%emt 0:00:00]} 31. Qe3 {[%emt 0:00:00]}
Qxh5 {[%emt 0:00:00]} 32. Nf3 {[%emt 0:00:00]} Bf6 {[%emt 0:00:00]} 33. Qf4 {
[%emt 0:00:00]} Kg7 {[%emt 0:00:00]} 34. h4 {[%emt 0:00:00]} Qg4+ {[%emt 0:00:
00]} 35. Qxg4 {[%emt 0:00:00]} Bxg4 {[%emt 0:00:00]} 36. Kg2 {[%emt 0:00:00]}
Bf5 {[%emt 0:00:00]} 37. Kg3 {[%emt 0:00:00]} Bb1 {[%emt 0:00:00]} 38. Nd2 {
[%emt 0:00:00]} Bxa2 {[%emt 0:00:00]} 39. Bd3 {[%emt 0:00:00]} b5 {[%emt 0:00:
00]} 40. cxb5 {[%emt 0:00:00]} Bxd5 {[%emt 0:00:00]} 41. Nc4 {[%emt 0:02:05]}
Bd8 {[%emt 0:00:00]} 42. f4 {[%emt 0:00:00]} Be6 {[%emt 0:00:00]} 43. Nd6 {
[%emt 0:00:00]} Ba5 {[%emt 0:00:00]} 44. Kf2 {[%emt 0:00:00]} Kf6 {[%emt 0:00:
00]} 45. Ne4+ {[%emt 0:00:00]} Ke7 {[%emt 0:00:00]} 46. Ng5 {[%emt 0:00:00]}
Bb3 {[%emt 0:00:00]} 47. Be4 {[%emt 0:00:00]} f5 {[%emt 0:00:00]} 48. Bf3 {
[%emt 0:00:00]} Bd2 {[%emt 0:00:00]} 49. Nh3 {[%emt 0:00:00]} Bc4 {[%emt 0:00:
00]} 50. Be2 {[%emt 0:00:00]} Bf7 {[%emt 0:00:00]} 51. Ng5 {[%emt 0:00:00]} Bd5
{[%emt 0:00:00]} 0-1